Workbook

Sheet Estimate Form
J4: Fill this out first:
J6: SYSTEM NAME | K6: Southwood Water System
J7: PROJECT DISCRIPTION | K7: 82nd Ave Apartments Distribution Extension
J8: COUNTY | K8: Pierce
J9: ENG. FILE # | K9: 3939
J10: PROJECT TYPE | K10: FALSE
B11: =$K$6 -> Southwood Water System | K11: TRUE
B12: =$K$7 -> 82nd Ave Apartments Distribution Extension | J12: TCJA RATE | K12: 0.21
B13: =TODAY() -> 2022-05-25 | J13: WWS OH RATE | K13: 0.38
B14: (Projected Cost Good for 30-Days) | J14: STATE B/O | K14: 0.0175
F15: Engineering File # | G15: =K9 -> 3939
D16: *** Construction Materials ***
B17: Unit of Property | C17: Description | D17: Quantity | E17: Unit of Measure | F17: Unit Cost | G17: Total
B18: 103240 | C18: Construction Materials, Pipe, Valves, Fittings, Etc | D18: 1 | E18: LS | F18: =IF(AND($K$11,NOT($K$10)),'Materials Worksheet'!G47*(1+$K$13),'Materials Worksheet'!G47) -> 4407.432132 | G18: =F18*D18 -> 4407.432132 | J18: Edit Unit of Property as Needed in All Categories
B19: 103450 | C19: Construction Materials for Services | D19: 1 | E19: LS | F19: =IF(AND($K$11,NOT($K$10)),'Materials Worksheet'!G59*(1+$K$13),'Materials Worksheet'!G59) -> 0 | G19: 0
B20: 103480 | C20: Construction Materials for Hydrants | D20: 1 | E20: LS | F20: =IF(AND($K$11,NOT($K$10)),'Materials Worksheet'!G60*(1+$K$13),'Materials Worksheet'!G73) -> 0 | G20: 0 | J20: NOTE:
G21: 0 | J21: The 21% Federal Income Tax per the "Tax Cuts & Jobs Act" of 2017 applies to CICA projects ONLY.
G22: =D22*F22 -> 0 | J22: State B&O Tax tax applies to CICA projects only.
D23: Sub-Total | G23: =SUM(G18:G22) -> 4407.432132
D24: Contingency | F24: 0.1 | G24: =G23*F24 -> 440.7432132
D25: Sales Tax | F25: 0.09 | G25: =(G23+G24)*F25 -> 436.3357811 | J25: INVENTORY COST SHEET LINK
D26: SUB Total - Materials | G26: =G23+G24+G25 -> 5284.511126
D27: Rounded Up Value | G27: =ROUNDUP(G26,-2) -> 5300 | K27: Use this button for nearside 1" service installation
D29: *** Construction Labor ***
B30: Unit of Property | C30: Description | D30: Quantity | E30: Unit of Measure | F30: Unit Cost | G30: Total
B31: 103240 | C31: Construction Labor - Watermain | D31: 1 | E31: LS | F31: =IF(AND($K$11,NOT($K$10)),'Construction Labor'!G21*(1+$K$13),'Construction Labor'!G21) -> 4140 | G31: =F31*D31 -> 4140
B32: 103450 | C32: Construction Labor - Services | D32: 1 | E32: LS | F32: =IF(AND($K$11,NOT($K$10)),'Construction Labor'!P21*(1+$K$13),'Construction Labor'!P21) -> 414 | G32: =F32*D32 -> 414 | J32: Non-Residential Connection Calculation
B33: 103480 | C33: Construction Labor - Hydrants | D33: 1 | E33: LS | F33: =IF(AND($K$11,NOT($K$10)),'Construction Labor'!Y21*(1+$K$13),'Construction Labor'!Y21) -> 828 | G33: 828 | J33: # of Sites/units:
G34: 0 | J34: # auxiliary buildings:
C35: WWSC Engineering | D35: 1 | E35: LS | F35: =IF(AND($K$11,NOT($K$10)),'Eng Labor'!H42*(1+$K$13),'Eng Labor'!H42) -> 2504.7 | G35: 2504.7 | J35: Daily Demand for aux. bldg: | L35: gpd | M35: from developer's engineering firm
G36: 0 | J36: Daily Demand per site: | L36: gpd | M36: from developer's engineering firm
G37: 0 | J37: Total Daily Demand: | L37: gpd
G38: =SUM(G31:G37) -> 7886.7 | J38: MDD: | L38: gpd
D39: Contingency | F39: 0.1 | G39: =G38*F39 -> 788.67 | J39: # of ERUs: | L39: ERUs
D40: Sub-Total - Construction Labor | G40: =G38+G39 -> 8675.37
D41: Rounded Up Value | G41: =ROUNDUP(G40,-2) -> 8700 | J41: Peak Flow
J42: Fixtures per site (RV): | K42: qty/site | L42: factor | M42: Total
D43: *** Outside Contractor *** | J43: shower | L43: 2 | M43: =L43*K43 -> 0
B44: Unit of Property | C44: Description | D44: Quantity | E44: Unit of Measure | F44: Unit Cost | G44: Total | J44: toilet | L44: 2.5 | M44: =L44*K44 -> 0
C45: County Permits (Encroachment) | D45: 1 | E45: LS | F45: =300*(1+K13) -> 414 | G45: =F45*D45 -> 414 | J45: sink (bath) | L45: 1 | M45: 0
C46: DOH Review Fees | D46: 1 | E46: LS | G46: =F46*D46 -> 0 | J46: sink (kitchen) | L46: 1.5 | M46: 0
C47: Tapping Services | D47: 1 | E47: LS | F47: =2500*(1+K13) -> 3450 | G47: 3450 | L47: total | M47: =SUM(M43:M46) -> 0
C48: Geotechnical Engineer | D48: 1 | E48: LS | G48: 0 | L48: x sites | M48: =M47*K33 -> 0
C49: Engineering Consultant | D49: 1 | E49: LS | G49: 0 | J49: aux bldg laundry | L49: 5 | M49: =K49*L49 -> 0
C50: Land Surveyor | D50: 1 | E50: LS | G50: =F50*D50 -> 0 | J50: aux bldg restroom | L50: 5 | M50: =K50*L50 -> 0
C51: Land Cost | D51: 1 | E51: LS | G51: 0 | M51: =SUM(M48:M50) -> 0
C52: Additional Insurance | D52: 1 | E52: LS | G52: 0
C53: Bonding | D53: 1 | E53: LS | G53: 0 | K53: From 2021 UPC Chart A 103.1(2) | M53: gpm
C54: Sanitary Facility Rental (Portable Toilet) | D54: 1 | E54: LS | F54: =IF(AND($K$11,NOT($K$10)),'Construction Labor'!D35*(1+$K$13),'Construction Labor'!D35) -> 0 | G54: 0
C55: Paving Contractor - Pavement Restoration | D55: 1 | E55: LS | G55: 0 | J55: Use XXXXXXX ###### meter
C56: Traffic Control Contractor - Flaggers | D56: 1 | E56: LS | F56: =IF(AND($K$11,NOT($K$10)),'Construction Labor'!E30*(1+$K$13),'Construction Labor'!E30) -> 0 | G56: 0
G57: 0
G58: 0
G59: 0
G60: 0
D61: SUB TOTAL | G61: =SUM(G45:G60) -> 3864
D62: Contingency | F62: 0.1 | G62: =G61*F62 -> 386.4 | J62: 50% of total project cost | K62: =G73/2 -> 14198.64138
D63: Sub-Total - Outside Contractor | G63: =SUM(G61:G62) -> 4250.4 | J63: total cost of watermains | K63: =G18*(1+F24)*(1+F25) + (G31+G35)*(1+F39) +( G54+G55+G56+G45+G50)*(1+F62) -> 13049.08113
D64: Rounded Up Value | G64: =ROUNDUP(G63,-2) -> 4300
J65: enter footage below
D66: Project Subtotal = | G66: =ROUNDUP(G27+G41+G64,-2) -> 18300 | K66: LF | L66: =IFERROR(K63/J66,0) -> 0 | M66: $/LF Pre Tax
D67: East Pierce Facilities Charge = | G67: 7745
D68: =IF(OR(K10,K11),IF(AND(K11,NOT(K10)),"Federal Tax per the TCJA=",IF(AND(K10,NOT(K11)),"Construction OH=",IF(AND(K11,K10),"SELECT ONLY ONE PROJECT TYPE")))) -> Federal Tax per the TCJA= | G68: =IF(OR(K10,K11),IF(AND(K11,NOT(K10)),SUM(G19,G32)*(1/(1-K12)-1),IF(AND(K10,NOT(K11)),(SUM(G66:G67)*K13),IF(AND(K11,K10),"WARNING")))) -> 110.0506329
D69: State B&O Tax = | G69: =IF(OR(K10,K11),IF(AND(K11,NOT(K10)),SUM(G66:G68)*(1/(1-K14)-1),IF(AND(K10,NOT(K11)),0,IF(AND(K11,K10),"WARNING")))) -> 465.8660418
C70: Anticipated Developer (onsite) Cost of Taxable Services
C71: ='Materials Worksheet'!O59 -> 6682.52 | D71: Anticipated TCJA Tax = | G71: =C71*(1/(1-K12) - 1) -> 1776.366076
D73: Projected Funds Required = | G73: =SUM(G66:G71) -> 28397.28275
C75: Assumptions:
C76: 1) This document is intended to forecast approximate construction costs based upon current information and similar projects, and is not
C77: intended to accurately represent actual design or construction components or prices.
C78: 2) Totals are rounded to nearest $100

Sheet Materials Worksheet
C1: ='Estimate Form'!$K$6 -> Southwood Water System
C2: =CONCATENATE('Estimate Form'!$K$8, " County") -> Pierce County | F2: Eng. File # | G2: ='Estimate Form'!$K$9 -> 3939
C3: ='Estimate Form'!K7 -> 82nd Ave Apartments Distribution Extension
C4: Engineer's Opinion of Projected Construction Materials Costs
C5: =TODAY() -> 2022-05-25
B8: OFFSITE - PROVIDED BY WWS | J8: ONSITE ASSETS BY OTHERS
A9: Unit of Property | B9: Inventory Number | C9: Task - WATERMAIN | D9: Quantity | E9: Units | F9: Unit Cost | G9: Total | I9: Unit of Property | J9: Inventory Number | K9: Task - WATERMAIN | L9: Quantity | M9: Units | N9: Unit Cost | O9: Total
C14: 16" x 8" Tappling Sleeve | D14: 1 | E14: EA | F14: 2000 | G14: =D14*F14 -> 2000 | N14: 0 | O14: =L14*N14 -> 0
C15: 8" FLG GATE VALVE AWWA | D15: 1 | E15: EA | F15: 781 | G15: 781 | O15: 0
C16: AWWA Gate Valve assembly | D16: 1 | E16: LS | F16: ='[1]Materials Assemblies'!P29 -> 62.7914 | G16: 62.7914 | O16: 0
C17: locate wire, blocking, bedding, misc | D17: 1 | E17: LS | F17: 350 | G17: 350 | O17: 0
G18: 0 | O18: 0
G19: 0 | O19: 0
G20: 0 | O20: 0
G21: 0 | O21: 0
G22: 0 | O22: 0
G23: 0 | O23: 0
G24: 0 | O24: 0
G25: 0 | O25: 0
G26: 0 | O26: 0
G27: 0 | O27: 0
G28: 0 | O28: 0
G29: 0 | O29: 0
G30: 0 | O30: 0
G31: 0 | O31: 0
G32: 0 | O32: 0
G33: 0 | O33: 0
G34: 0 | O34: 0
G35: 0 | O35: 0
G36: 0 | O36: 0
G37: 0 | O37: 0
G38: 0 | O38: 0
G39: 0 | O39: 0
G40: 0 | O40: 0
G41: =D41*F41 -> 0 | O41: 0
G42: 0 | O42: 0
G43: 0 | O43: 0
G44: 0 | O44: 0
G45: 0 | O45: 0
F47: Sub-Total | G47: =SUM(G14:G45) -> 3193.7914 | N47: Sub-Total | O47: =SUM(O14:O45) -> 0
A50: Unit of Property | B50: Inventory Number | C50: Task - SERVICES | D50: Quantity | E50: Units | F50: Unit Cost | G50: Total | I50: Unit of Property | J50: Inventory Number | K50: Task - SERVICES (CIAC TAX APPLICABLE) | L50: Quantity | M50: Units | N50: Unit Cost | O50: Total
A53: 103450 | C53: ='Materials Assemblies'!C31 -> 5/8 x 3/4 Meter Single Service Assembly w/ 1" Service Line | D53: 0 | E53: EA | F53: ='Materials Assemblies'!G45 -> 489.265 | G53: =D53*F53 -> 0 | I53: 103450 | K53: ='[1]Materials Assemblies'!K73 -> 1½" Meter Single Service Assembly | L53: 1 | M53: EA | N53: ='[1]Materials Assemblies'!P85 -> 2041.535 | O53: =L53*N53 -> 2041.535
G54: 0 | J54: irrigation | K54: ='[1]Materials Assemblies'!C73 -> 1" Meter Single Service Assembly | L54: 1 | M54: EA | N54: ='[1]Materials Assemblies'!G85 -> 1040.985 | O54: 1040.985
G55: 0 | O55: 0
G56: 0 | K56: Construction Labor (4 person crew @ $75/hr/person) | L56: 8 | M56: hr | N56: =75*4 -> 300 | O56: 2400
G57: 0 | K57: Engineering/Design/Admin | L57: 1 | M57: LS | N57: 1200 | O57: 1200
F59: Sub-Total | G59: =SUM(G53:G57) -> 0 | N59: Sub-Total | O59: =SUM(O53:O57) -> 6682.52
A64: Unit of Property | B64: Inventory Number | C64: Task - HYDRANTS | D64: Quantity | E64: Units | F64: Unit Cost | G64: Total | I64: Unit of Property | J64: Inventory Number | K64: Task - HYDRANTS | L64: Quantity | M64: Units | N64: Unit Cost | O64: Total
A67: 103480 | C67: Fire Hydrant | D67: 0 | E67: EA | F67: ='Materials Assemblies'!G28 -> 3462.9324 | G67: =D67*F67 -> 0 | I67: 103480 | K67: Fire Hydrant | L67: 0 | M67: EA | N67: ='Materials Assemblies'!G28 -> 3462.9324 | O67: =L67*N67 -> 0
G68: =D68*F68 -> 0 | O68: =L68*N68 -> 0
G69: =D69*F69 -> 0 | O69: =L69*N69 -> 0
G70: =D70*F70 -> 0 | O70: =L70*N70 -> 0
G71: =D71*F71 -> 0 | O71: =L71*N71 -> 0
F73: Sub-Total | G73: =SUM(G67:G71) -> 0 | N73: Sub-Total | O73: =SUM(O67:O71) -> 0
N75: TOTAL | O75: =SUM(O73,O59,O47) -> 6682.52

Sheet Materials Assemblies
C1: ='Estimate Form'!$K$6 -> Southwood Water System
C2: =CONCATENATE('Estimate Form'!$K$8, " County") -> Pierce County | F2: Eng. File # | G2: ='Estimate Form'!$K$9 -> 3939
C3: ='Estimate Form'!K7 -> 82nd Ave Apartments Distribution Extension
C4: Engineer's Opinion of Projected Construction Materials Costs
C5: =TODAY() -> 2022-05-25
C10: Assembly Items Listed Below
C13: Hydrant Assembly
B14: 60600033 | C14: 6" Dry-Barrel Hydrant | D14: 1 | E14: EA | F14: ='Inventory Cost 2021'!B1596 -> 2099.87 | G14: =D14*F14 -> 2099.87 | L14: Temporary Testing Service
B15: 60500031 | C15: 5" Storz Adaptor | D15: 1 | E15: EA | F15: ='Inventory Cost 2021'!B1598 -> 145 | G15: 145 | K15: 30800181 | L15: 8 x 1 TAPPING SADDLE | M15: 1 | N15: EA | O15: ='Inventory Cost 2021'!B728 -> 51.57 | P15: =M15*O15 -> 51.57
B16: 60600081 | C16: 18" Valve Box Riser /w Lid | D16: 1 | E16: EA | F16: ='Inventory Cost 2021'!B1621 -> 35.75 | G16: 35.75 | K16: 40100255 | L16: 1" CORP STOP VALVE-NO LEAD | M16: 1 | N16: EA | O16: ='Inventory Cost 2021'!B860 -> 45.42 | P16: 45.42
B17: 60600082 | C17: CI Valve Box Bottom Section | D17: 1 | E17: EA | F17: ='Inventory Cost 2021'!B1618 -> 23 | G17: 23 | K17: 60100012 | L17: 1" CL 200 POLY PIPE | M17: 12 | N17: LF | O17: ='Inventory Cost 2021'!B1602 -> 2.09 | P17: 25.08
B18: 30600194 | C18: 6"x6" Tee, MJxFLG | D18: 1 | E18: EA | F18: ='Inventory Cost 2021'!B788 -> 114.89 | G18: 114.89 | K18: 40100220 | L18: 1" ANGLE STOP VALVE-NO LEAD | M18: 1 | N18: EA | O18: ='Inventory Cost 2021'!B933 -> 49.57 | P18: 49.57
B19: 30600141 | C19: 6" Ductile Iron Pipe Cl 50 | D19: 12 | E19: LF | F19: ='Inventory Cost 2021'!B676 -> 17.1144 | G19: 205.3728 | K19: 100034060 | L19: RES METER BOX w/lid, STANDARD | M19: 1 | N19: EA | O19: ='Inventory Cost 2021'!B1988 -> 27.93 | P19: 27.93
B20: 30600028 | C20: 6" MEGALUG PK/KIT (DI) | D20: 2 | E20: EA | F20: ='Inventory Cost 2021'!B624 -> 43.53 | G20: 87.06 | P20: 0
B21: 30800029 | C21: 8" MEGALUG PK/KIT (PVC) | D21: 2 | E21: EA | F21: ='Inventory Cost 2021'!B631 -> 69 | G21: 138
B22: 30600030 | C22: 6" FLG BOLT & GSKT KIT | D22: 2 | E22: EA | F22: ='Inventory Cost 2021'!B585 -> 11.82 | G22: 23.64 | O22: Sub-Total | P22: =SUM(P15:P20) -> 199.57
B23: 40600285 | C23: 6" MJ x FLG GATE VALVE | D23: 1 | E23: EA | F23: ='Inventory Cost 2021'!B895 -> 577.94 | G23: 577.94
C24: GRAVEL 1 1/4 minus | D24: 0.5 | E24: CY | F24: ='Inventory Cost 2021'!B2046 -> 11.132 | G24: 5.566 | L24: AWWA Gate Valve Assembly
B25: 125004816 | C25: Support Blocks | D25: 6 | E25: EA | F25: ='Inventory Cost 2021'!B2034 -> 1.1406 | G25: 6.8436 | K25: 60600081 | L25: 18" Valve Box Riser /w Lid | M25: 1 | N25: EA | O25: ='Inventory Cost 2021'!B1621 -> 35.75 | P25: =O25*M25 -> 35.75
G26: 0 | K26: 60600082 | L26: CI Valve Box Bottom Section | M26: 1 | N26: EA | O26: ='Inventory Cost 2021'!B1618 -> 23 | P26: =O26*M26 -> 23
K27: 51400155 | L27: LOCATOR WIRE, # 14 | M27: 6 | N27: LF | O27: ='Inventory Cost 2021'!B1560 -> 0.0765 | P27: 0.459
F28: Sub-Total | G28: =SUM(G14:G26) -> 3462.9324 | K28: 125004816 | L28: Support Blocks | M28: 4 | N28: EA | O28: ='Inventory Cost 2021'!B2034 -> 1.1406 | P28: 4.5624
O29: Sub-Total | P29: =SUM(P25:P28) -> 63.7714
C31: 5/8 x 3/4 Meter Single Service Assembly w/ 1" Service Line | K31: 5/8 x 3/4 Meter Double Service Assembly w/ 1" Service Line
B32: 30800181 | C32: 8 x 1 TAPPING SADDLE | D32: 1 | E32: EA | F32: ='Inventory Cost 2021'!B728 -> 51.57 | G32: =D32*F32 -> 51.57 | K32: 30800181 | L32: 8 x 1 TAPPING SADDLE | M32: 1 | N32: EA | O32: ='Inventory Cost 2021'!B728 -> 51.57 | P32: =M32*O32 -> 51.57
B33: 40100255 | C33: 1" CORP STOP VALVE-NO LEAD | D33: 1 | E33: EA | F33: ='Inventory Cost 2021'!B860 -> 45.42 | G33: 45.42 | K33: 40100255 | L33: 1" CORP STOP VALVE-NO LEAD | M33: 1 | N33: EA | O33: ='Inventory Cost 2021'!B860 -> 45.42 | P33: 45.42
B34: 60100012 | C34: 1" CL 200 POLY PIPE | D34: 30 | E34: LF | F34: ='Inventory Cost 2021'!B1602 -> 2.09 | G34: 62.7 | K34: 60100012 | L34: 1" CL 200 POLY PIPE | M34: 30 | N34: LF | O34: ='Inventory Cost 2021'!B1602 -> 2.09 | P34: 62.7
B35: 51400155 | C35: LOCATOR WIRE, # 14 | D35: 30 | E35: LF | F35: ='Inventory Cost 2021'!B1560 -> 0.0765 | G35: 2.295 | K35: 51400155 | L35: LOCATOR WIRE, # 14 | M35: 30 | N35: LF | O35: ='Inventory Cost 2021'!B1560 -> 0.0765 | P35: 2.295
C36: Meter Setter - Ford VH72-12W-11-44-NL | D36: 1 | E36: EA | F36: ='Inventory Cost 2021'!B2019 -> 238.16 | G36: 238.16 | L36: Meter Setter - Ford VH72-12W-11-44-NL | M36: 2 | N36: EA | O36: ='Inventory Cost 2021'!B2019 -> 238.16 | P36: 476.32
B37: 60100021 | C37: 1" PJ x MIPT POLY ADAPTOR-NO LEAD | D37: 1 | E37: EA | F37: ='Inventory Cost 2021'!B1567 -> 31.02 | G37: 31.02 | L37: 1" x 18" BRASS NIPPLE | M37: 4 | N37: EA | O37: 60 | P37: 240
C38: 1" x 18" BRASS NIPPLE | D38: 1 | E38: EA | F38: ='Inventory Cost 2021'!B1816 -> 24.17 | G38: 24.17 | K38: 100034060 | L38: RES METER BOX w/lid, STANDARD | M38: 2 | N38: EA | O38: ='Inventory Cost 2021'!B1988 -> 27.93 | P38: 55.86
B39: 100034060 | C39: RES METER BOX w/lid, STANDARD | D39: 1 | E39: EA | F39: ='Inventory Cost 2021'!B1988 -> 27.93 | G39: 27.93 | L39: 2x4 Marker | M39: 2 | N39: EA | O39: 6 | P39: 12
C40: 2x4 Marker | D40: 1 | E40: EA | F40: 6 | G40: 6 | K40: 60100021 | L40: 1" PJ x MIPT POLY ADAPTOR-NO | M40: 1 | N40: EA | O40: ='Inventory Cost 2021'!B1567 -> 31.02 | P40: 31.02
C41: Concrete Valve Box Marker | D41: ='Inventory Cost 2021'!B1624 -> 23.68 | G41: =D41*F41 -> 0 | K41: 80100190 | L41: 1" BRASS TEE | M41: 1 | N41: EA | O41: ='Inventory Cost 2021'!B1838 -> 8.7 | P41: 8.7
G42: 0 | K42: 80100090 | L42: 1" 90 BRASS ELBOW | M42: 3 | N42: EA | O42: =[2]Extract!$O$1768 -> 6.08 | P42: 18.24
G43: 0
P44: 0
F45: Sub-Total | G45: =SUM(G32:G43) -> 489.265
O47: Sub-Total | P47: =SUM(P32:P44) -> 1004.125
C52: 5/8 x 3/4 Meter Single Service Assembly w/ 1½ Service Line | K52: 5/8 x 3/4 Meter Double Service Assembly w/ 1½" Service Line
B53: 30800183 | C53: 8 x 2 TAPPING SADDLE | D53: 1 | E53: EA | F53: ='Inventory Cost 2021'!B734 -> 99.47 | G53: =D53*F53 -> 99.47 | K53: 30800183 | L53: 8 x 2 TAPPING SADDLE | M53: 1 | N53: EA | O53: ='Inventory Cost 2021'!B734 -> 99.47 | P53: =M53*O53 -> 99.47 | R53: 3/4 x 3/4 Meter Double Service Assembly w/ 1½" Service Line
B54: 40200255 | C54: 2" CORP STOP VALVE-NO LEAD | D54: 1 | E54: EA | F54: ='Inventory Cost 2021'!B861 -> 216.67 | G54: 216.67 | K54: 40200255 | L54: 2" CORP STOP VALVE-NO LEAD | M54: 1 | N54: EA | O54: ='Inventory Cost 2021'!B861 -> 216.67 | P54: 216.67 | R54: 30800183 | S54: 8 x 2 TAPPING SADDLE | T54: 1 | U54: EA | V54: 128.37 | W54: 128.37
B55: 60112012 | C55: 1-1-2" CL 200 POLY PIPE | D55: 30 | E55: LF | F55: ='Inventory Cost 2021'!B1603 -> 1.49 | G55: 44.7 | K55: 60112012 | L55: 1-1-2" CL 200 POLY PIPE | M55: 30 | N55: LF | O55: ='Inventory Cost 2021'!B1603 -> 1.49 | P55: 44.7 | R55: 40200255 | S55: 2" CORP STOP VALVE-NO LEAD | T55: 1 | U55: EA | V55: 288.05 | W55: 288.05
B56: 51400155 | C56: LOCATOR WIRE, # 14 | D56: 30 | E56: LF | F56: ='Inventory Cost 2021'!B1560 -> 0.0765 | G56: 2.295 | K56: 51400155 | L56: LOCATOR WIRE, # 14 | M56: 30 | N56: LF | O56: ='Inventory Cost 2021'!B1560 -> 0.0765 | P56: 2.295 | R56: 60112012 | S56: 1-1-2" CL 200 POLY PIPE | T56: 30 | U56: LF | V56: 2.23 | W56: 66.97
C57: Meter Setter - Ford VH72-12W-11-66-NL | D57: 1 | E57: EA | F57: =F36 -> 238.16 | G57: 238.16 | L57: Meter Setter - Ford VH72-12W-11-66-NL | M57: 2 | N57: EA | O57: 238.16 | P57: 476.32 | R57: 51400155 | S57: LOCATOR WIRE, # 14 | T57: 30 | U57: LF | V57: 2.96 | W57: 88.84
B58: 60112021 | C58: 1-1/2" PJ x MIPT POLY ADAPTOR | D58: 1 | E58: EA | F58: ='Inventory Cost 2021'!B1569 -> 67.9 | G58: 67.9 | L58: 1½" x 18" BRASS NIPPLE | M58: 4 | N58: EA | O58: 60 | P58: 240 | S58: Meter Setter - Ford VH73-12W-11-66-NL | T58: 2 | U58: EA | V58: 220 | W58: 440
C59: 1½" x 18" BRASS NIPPLE | D59: 1 | E59: EA | F59: 75 | G59: 75 | K59: 100034060 | L59: RES METER BOX w/lid, STANDARD | M59: 2 | N59: EA | O59: =[2]Extract!$O$1950 -> 26.67 | P59: 53.34 | S59: 1½" x 18" BRASS NIPPLE | T59: 2 | U59: EA | V59: 60 | W59: 120
B60: 100034060 | C60: RES METER BOX w/lid, STANDARD | D60: 1 | E60: EA | F60: =F39 -> 27.93 | G60: 27.93 | L60: 2x4 Marker | M60: 2 | N60: EA | O60: 6 | P60: 12 | R60: 100034060 | S60: RES METER BOX w/lid, STANDARD | T60: 2 | U60: EA | V60: 37.06 | W60: 74.11
C61: 2x4 Marker | D61: 1 | E61: EA | F61: =F40 -> 6 | G61: 6 | K61: 60112021 | L61: 1-1/2" PJ x MIPT POLY ADAPTOR | M61: 2 | N61: EA | O61: =[2]Extract!$O$1583 -> 67.9 | P61: 135.8 | S61: 2x4 Marker | T61: 2 | U61: EA | V61: 6 | W61: 12
C62: 2"x1½" Brass Bell Reducer | D62: 1 | E62: EA | F62: 45 | G62: 45 | K62: 80112190 | L62: 1-1/2" BRASS TEE | M62: 1 | N62: EA | O62: =[2]Extract!$O$1793 -> 17.55 | P62: 17.55 | R62: 60112021 | S62: 1-1/2" PJ x MIPT POLY ADAPTOR | T62: 2 | U62: EA | V62: 87.67 | W62: 175.35
G63: 0 | L63: 1½" 90 BRASS ELBOW | M63: 3 | N63: EA | O63: =[2]Extract!$O$1787 -> 15 | P63: 45 | R63: 80112190 | S63: 1-1/2" BRASS TEE | T63: 1 | U63: EA | V63: 22.01 | W63: 22.01
G64: 0 | S64: 1½" 90 BRASS ELBOW | T64: 3 | U64: EA | V64: 22 | W64: 66
P65: 0 | R65: 80100134 | S65: 1½" x 18" BRASS NIPPLE | T65: 2 | U65: EA | V65: 60 | W65: 120
F66: Sub-Total | G66: =SUM(G53:G64) -> 823.125 | W66: $-
O68: Sub-Total | P68: =SUM(P53:P65) -> 1343.145
V69: Sub-Total | W69: 1601.7
C73: 1" Meter Single Service Assembly | K73: 1½" Meter Single Service Assembly
B74: 30800183 | C74: 8 x 2 TAPPING SADDLE | D74: 1 | E74: EA | F74: ='Inventory Cost 2021'!B734 -> 99.47 | G74: =D74*F74 -> 99.47 | K74: 30800183 | L74: 8 x 2 TAPPING SADDLE | M74: 1 | N74: EA | O74: =[2]Extract!$O$690 -> 99.47 | P74: =M74*O74 -> 99.47
B75: 40200255 | C75: 2" CORP STOP VALVE-NO LEAD | D75: 1 | E75: EA | F75: ='Inventory Cost 2021'!B861 -> 216.67 | G75: 216.67 | K75: 40200255 | L75: 2" CORP STOP VALVE-NO LEAD | M75: 1 | N75: EA | O75: =[2]Extract!$O$878 -> 216.67 | P75: 216.67
B76: 60112012 | C76: 1-1-2" CL 200 POLY PIPE | D76: 30 | E76: LF | F76: ='Inventory Cost 2021'!B1603 -> 1.49 | G76: 44.7 | K76: 60200012 | L76: 2" CL 200 POLY PIPE | M76: 30 | N76: LF | O76: =[2]Extract!$O$1593 -> 2.09 | P76: 62.7
B77: 51400155 | C77: LOCATOR WIRE, # 14 | D77: 30 | E77: LF | F77: =F56 -> 0.0765 | G77: 2.295 | K77: 51400155 | L77: LOCATOR WIRE, # 14 | M77: 30 | N77: LF | O77: =[2]Extract!$O$1521 -> 0.0765 | P77: 2.295
C78: Meter Setter - Ford VH74-12W-11-66-NL | D78: 1 | E78: EA | F78: 238 | G78: 238 | L78: Meter Setter - Ford VBHH76-18HBHC-11-77 | M78: 1 | N78: EA | O78: 1477 | P78: 1477
C79: 1½" x 18" BRASS NIPPLE | D79: 1 | E79: EA | F79: =F59 -> 75 | G79: 75 | L79: 2" x 18" BRASS NIPPLE | M79: 1 | N79: EA | O79: 41.33 | P79: 41.33
B80: 100034060 | C80: RES METER BOX w/lid, STANDARD | D80: 1 | E80: EA | F80: =F60 -> 27.93 | G80: =D80*F80 -> 27.93 | K80: 80200120 | L80: 2" x CLOSE BRASS NIPPLE | M80: 2 | N80: EA | O80: ='Inventory Cost 2021'!B418 -> 2.29 | P80: 4.58
B81: 100100158 | C81: 1" METER w/HRE REG+ERT | D81: 1 | E81: EA | F81: ='Inventory Cost 2021'!B1978 -> 305.94 | G81: =D81*F81 -> 305.94 | L81: 2" Brass Elbow | M81: 2 | N81: EA | O81: ='Inventory Cost 2021'!B1772 -> 20.76 | P81: 41.52
C82: 2x4 Marker | D82: 1 | E82: EA | F82: =F61 -> 6 | G82: =D82*F82 -> 6 | K82: 100034060 | L82: RES METER BOX w/lid, STANDARD | M82: 1 | N82: EA | O82: =[2]Extract!$O$1950 -> 26.67 | P82: =M82*O82 -> 26.67
C83: 2"x1½" Brass Bell Reducer | D83: 1 | E83: EA | F83: =F62 -> 45 | G83: =D83*F83 -> 45 | L83: 2x4 Marker | M83: 1 | N83: EA | O83: 6 | P83: =M83*O83 -> 6
F85: Sub-Total | G85: =SUM(G74:G83) -> 1061.005 | O85: Sub-Total | P85: =SUM(P74:P83) -> 1978.235
C89: 2" Blowoff Assembly | J89: Wellhead Enclosure Assembly
C90: 2" THREADED GATE AWWA | D90: 1 | E90: EA | F90: ='Inventory Cost 2021'!B883 -> 279.92 | G90: =D90*F90 -> 279.92 | K90: Well 2.5 X 8
C91: 8 x 2 TAPPING SADDLE | D91: 1 | E91: EA | F91: ='Inventory Cost 2021'!B734 -> 99.47 | G91: 99.47 | J91: Unit of Prop | K91: Inv No
C92: 18" VALVE BOX RISER w/LID | D92: 1 | E92: EA | F92: ='Inventory Cost 2021'!B1621 -> 35.75 | G92: 35.75 | J92: 103240 | L92: 2.5" sch 40 galv pipe (21ft lengths) | M92: 12 | N92: EA | O92: ='Inventory Cost 2021'!B465*21 -> 170.31 | P92: =O92*M92 -> 2043.72
C93: VALVE BOX BOTTOM CI | D93: 1 | E93: EA | F93: ='Inventory Cost 2021'!B1618 -> 23 | G93: 23 | J93: 103240 | L93: 2.5" wye fitting | M93: 0 | N93: EA | O93: ='Inventory Cost 2021'!B1680 -> 647 | P93: =O93*M93 -> 0
C94: 2 x 6 GALV NIPPLE | D94: 4 | E94: EA | F94: ='Inventory Cost 2021'!B426 -> 4.66 | G94: 18.64 | J94: 103240 | L94: 2.5" collumn check valve | M94: 2 | N94: EA | O94: ='Inventory Cost 2021'!B838 -> 207.17 | P94: 414.34
C95: 2" GALVANIZED PIPE | D95: 6 | E95: LF | F95: ='Inventory Cost 2021'!B464 -> 5.99 | G95: 35.94 | J95: 103240 | L95: 8"x 2-1/2" SPIDER | M95: 2 | N95: EA | O95: ='Inventory Cost 2021'!B1704 -> 10.33 | P95: 20.66
C96: 2" GALV 90 ELBOW | D96: 4 | E96: EA | F96: ='Inventory Cost 2021'!B291 -> 7.6 | G96: 30.4 | J96: 103240 | L96: 2.5" x 3" bell red galv | M96: 1 | N96: EA | O96: ='Inventory Cost 2021'!B214 -> 36.35 | P96: 36.35
C97: 2" PVC ADAPTOR FIP | D97: 2 | E97: EA | F97: ='Inventory Cost 2021'!B18 -> 9.67 | G97: 19.34 | J97: 103240 | L97: 2-1/2" GALV COUPLING | M97: 12 | N97: EA | O97: ='Inventory Cost 2021'!B249 -> 14.36 | P97: 172.32
C98: 2" PVC PIPE, CL 200 | D98: 20 | E98: LF | F98: ='Inventory Cost 2021'!B138 -> 0.65 | G98: 13 | J98: 103240 | L98: #6-4 flat jacket subcable | M98: 300 | N98: FT | O98: ='Inventory Cost 2021'!B1548 -> 2.41 | P98: 723
C99: BEDDING SAND | D99: 2.5 | E99: CY | F99: ='Inventory Cost 2021'!B2047 -> 5.1071 | G99: 12.76775 | J99: 103240 | L99: sounding tube | M99: 260 | N99: FT | O99: ='Inventory Cost 2021'!B1692 -> 1.84 | P99: 478.4
J100: 103240 | L100: sounding tube screen | M100: 20 | N100: FT | O100: ='Inventory Cost 2021'!B1692 -> 1.84 | P100: 36.8
F101: Sub-Total | G101: =SUM(G90:G100) -> 568.22775 | J101: 103240 | L101: assorted fittings | M101: 1 | N101: EA | O101: 100 | P101: 100
J102: 103240 | L102: Well Seal | M102: 1 | N102: EA | O102: 500 | P102: 500
J103: 103240 | L103: Wellhead Enclosure (Hubbel) | M103: 1 | N103: EA | O103: 3400 | P103: 3400
J104: 103240 | L104: 2-1/2" BALL VALVE-NO LEAD | M104: 2 | N104: EA | O104: ='Inventory Cost 2021'!B813 -> 81.4 | P104: 162.8
C105: 2" Air/Vac Assembly | J105: 103240 | L105: 1" duck bill syle check valve | M105: 1 | N105: ea | O105: 40 | P105: 40
C106: 2" THREADED GATE AWWA | D106: 1 | E106: EA | F106: ='Inventory Cost 2021'!B883 -> 279.92 | G106: =D106*F106 -> 279.92 | L106: Pad | M106: 1 | N106: ea | O106: 1800 | P106: 1800
C107: 8 x 2 TAPPING SADDLE | D107: 1 | E107: EA | F107: ='Inventory Cost 2021'!B734 -> 99.47 | G107: 99.47
C108: 18" VALVE BOX RISER w/LID | D108: 1 | E108: EA | F108: ='Inventory Cost 2021'!B1621 -> 35.75 | G108: 35.75
C109: VALVE BOX BOTTOM CI | D109: 1 | E109: EA | F109: ='Inventory Cost 2021'!B1618 -> 23 | G109: 23 | O109: Sub-Total | P109: =SUM(P92:P106) -> 9928.39
C110: 2 x 6 GALV NIPPLE | D110: 7 | E110: EA | F110: ='Inventory Cost 2021'!B426 -> 4.66 | G110: 32.62
C111: 2" AIR/VAC VALVE, ARI #D-040 | D111: 1 | E111: EA | F111: ='Inventory Cost 2021'!B804 -> 288 | G111: 288
C112: 2" GALVANIZED PIPE | D112: 7 | E112: LF | F112: =[2]Extract!$O$434 -> 6.42 | G112: 44.94
C113: 2" GALV 90 ELBOW | D113: 4 | E113: EA | F113: =[2]Extract!$O$419 -> 7.24 | G113: 28.96
C114: 2" PVC ADAPTOR FIP | D114: 2 | E114: EA | F114: =[2]Extract!$O$100 -> 9.67 | G114: 19.34 | J114: Chlorine Analyzer with Cell Modem
C115: 2" GALV 180 ELBOW | D115: 1 | E115: EA | F115: =[2]Extract!$O$437 -> 76.71 | G115: 76.71
C116: 2" ENVIRO STRAINER-NO LEAD | D116: 1 | E116: EA | F116: =[2]Extract!$O$880 -> 44.55 | G116: 44.55 | J116: Unit of Prop | K116: Inv No
C117: 2" GALV CAP | D117: 1 | E117: EA | F117: =[2]Extract!$O$415 -> 3.69 | G117: 3.69 | J117: 103320 | L117: Kuntze Chlorine Analyzer w/ gateway | M117: 1 | N117: EA | O117: 6100 | P117: =O117*M117 -> 6100
C118: 2" GALV REDUCING TEE | D118: 2 | E118: EA | F118: =[2]Extract!$O$439 -> 10.48 | G118: 20.96 | J118: 103760 | L118: CradlePoint Cell Modem | M118: 1 | N118: EA | O118: 550 | P118: =O118*M118 -> 550
C119: 3/4" ANGLE STOP VALVE-NO LEAD | D119: 1 | E119: EA | F119: =[2]Extract!$O$807 -> 31.13 | G119: 31.13 | J119: 103760 | L119: CA-400 NM-SMA-20 Cable | M119: 1 | N119: EA | O119: 65 | P119: 65
C120: 3/4 x 18 GALV NIPPLE | D120: 2 | E120: EA | F120: =[2]Extract!$O$294 -> 0.9 | G120: 1.8 | J120: 103760 | L120: Gradle Point High Gain Antennae | M120: 1 | N120: EA | O120: 135 | P120: 135
C121: 3/4 x 6 GALV NIPPLE | D121: 1 | E121: EA | F121: =[2]Extract!$O$290 -> 1.255 | G121: 1.255 | J121: 103760 | L121: 50 ft CAT5 Ethernet Cable | M121: 1 | N121: EA | O121: 15 | P121: 15
C122: 3/4" GALV 90 ELBOW | D122: 1 | E122: EA | F122: =[2]Extract!$O$277 -> 4.83 | G122: 4.83 | J122: 103760 | L122: mounting hardware | M122: 1 | N122: EA | O122: 30 | P122: 30
C123: EXTRA LG METER BOX LID, STD | D123: 1 | E123: EA | F123: =[2]Extract!$O$1971 -> 111.11 | G123: 111.11 | L123: DPD Colorimeter | M123: 1 | N123: EA | O123: 463 | P123: 463
C124: 1 1/2 x 6 GALV NIPPLE | D124: 3 | E124: EA | F124: =[2]Extract!$O$373 -> 3.48 | G124: 10.44
C125: 1-1/2" GALV 90 ELBOW | D125: 1 | E125: EA | F125: =[2]Extract!$O$361 -> 3.86 | G125: 3.86 | O125: Sub-Total | P125: =SUM(P117:P123) -> 7358
C126: 1-1/2" GALV UNION | D126: 1 | E126: EA | F126: =[2]Extract!$O$383 -> 8.47 | G126: 8.47
C127: CONCRETE VALVE BOX MARKER | D127: 1 | E127: EA | F127: =[2]Extract!$O$1611 -> 23.68 | G127: 23.68
C128: 2" PVC PIPE, CL 200 | D128: 20 | E128: LF | F128: =[2]Extract!$O$113 -> 0.65 | G128: 13
C129: BLOCKS 2/8 4/8 4/16 - AVG | D129: 3 | E129: EA | F129: =[2]Extract!$O$2002 -> 1.1406 | G129: 3.4218
F131: Sub-Total | G131: =SUM(G106:G129) -> 1210.9068
C136: 2.5" Pump Suspension Assembly | D136: Enter Pump Suction Depth: | G136: 130 | H136: FT
B137: 40212240 | C137: 2-1/2" INLINE CHK VALVE (DUCTILE IRON) | D137: =ROUND($G$136/80,0) -> 2 | E137: EA | F137: ='Inventory Cost 2021'!B838 -> 207.17 | G137: =D137*F137 -> 414.34
B138: 103240 | C138: 2.5" wye fitting | D138: 0 | E138: EA | F138: ='Inventory Cost 2021'!B1680 -> 647 | G138: =F138*D138 -> 0
B139: 70822171 | C139: 8"x 2-1/2" SPIDER | D139: =ROUND($G$136/80,0) -> 2 | E139: EA | F139: ='Inventory Cost 2021'!B1704 -> 10.33 | G139: 20.66
B140: 20212190 | C140: 2-1/2" GALV TEE | D140: 1 | E140: EA | F140: ='Inventory Cost 2021'!B492 -> 42.47 | G140: 42.47
B141: 20212140 | C141: 2-1/2" GALVANIZED PIPE | D141: =G136 -> 130 | E141: FT | F141: ='Inventory Cost 2021'!B465 -> 8.11 | G141: 1054.3
B142: 20212070 | C142: 2-1/2" GALV COUPLING | D142: =ROUND(G136/20,0) -> 7 | E142: EA | F142: ='Inventory Cost 2021'!B249 -> 14.36 | G142: 100.52
B143: 70100156 | C143: 1" SCH 80 SOUNDING TUBE | D143: =G136 -> 130 | E143: FT | F143: ='Inventory Cost 2021'!B1692 -> 1.84 | G143: 239.2
B144: 60038100 | C144: 3/8" OD PE TUBING | D144: =G136 -> 130 | E144: FT | F144: ='Inventory Cost 2021'!B1613 -> 0.32 | G144: 41.6
F146: Sub-Total | G146: =SUM(G137:G144) -> 1913.09

Sheet Construction Labor
D1: ='Estimate Form'!$K$6 -> Southwood Water System
D2: =CONCATENATE('Estimate Form'!$K$8, " County") -> Pierce County | H2: Eng. File # | I2: ='Estimate Form'!$K$9 -> 3939
D3: ='Estimate Form'!$K$7 -> 82nd Ave Apartments Distribution Extension
D4: Engineer's Opinion of Projected Construction Materials Costs
D5: =TODAY() -> 2022-05-25
A7: WWS Construction Crew- Mains | J7: WWS Construction Crew- Services | S7: WWS Construction Crew- Hydrants
F9: Rate | G9: Sub-Total | O9: Rate | P9: Sub-Total | X9: Rate | Y9: Sub-Total
A10: 1 Man & Vac Truck | D10: 8 | E10: HRS | F10: 75 | G10: =D10*F10 -> 600 | J10: 1 Man & Vac Truck | N10: HRS | O10: 75 | P10: =M10*O10 -> 0 | S10: 1 Man & Vac Truck | W10: HRS | X10: 75 | Y10: =V10*X10 -> 0
A11: 1 Man & Boom Truck | E11: HRS | F11: 75 | G11: =D11*F11 -> 0 | J11: 1 Man & Boom Truck | N11: HRS | O11: 75 | P11: =M11*O11 -> 0 | S11: 1 Man & Boom Truck | W11: HRS | X11: 75 | Y11: =V11*X11 -> 0
A12: 1 Man & Backhoe - Trench | D12: 8 | E12: HRS | F12: 75 | G12: =D12*F12 -> 600 | J12: 1 Man & Backhoe - Trench | N12: HRS | O12: 75 | P12: =M12*O12 -> 0 | S12: 1 Man & Backhoe - Trench | W12: HRS | X12: 75 | Y12: =V12*X12 -> 0
A13: 1 Man & Backhoe - Comp | E13: HRS | F13: 75 | G13: 0 | J13: 1 Man & Backhoe - Comp | N13: HRS | O13: 75 | P13: 0 | S13: 1 Man & Backhoe - Comp | W13: HRS | X13: 75 | Y13: 0
A14: Admin/Prep | D14: 8 | E14: HRS | F14: 75 | G14: 600 | J14: Admin/Prep | M14: 4 | N14: HRS | O14: 75 | P14: =M14*O14 -> 300 | S14: Admin/Prep | V14: 8 | W14: HRS | X14: 75 | Y14: 600
A15: 1 Man & Truck | E15: HRS | F15: 75 | G15: 0 | J15: 1 Man & Truck | N15: HRS | O15: 75 | P15: 0 | S15: 1 Man & Truck | W15: HRS | X15: 75 | Y15: 0
A16: 2 Men & Truck | D16: 8 | E16: HRS | F16: 150 | G16: 1200 | J16: 2 Men & Truck | N16: HRS | O16: 150 | P16: 0 | S16: 2 Men & Truck | W16: HRS | X16: 150 | Y16: 0
A17: 1 Electrician & Truck | E17: HRS | F17: 80 | G17: 0 | J17: 1 Electrician & Truck | N17: HRS | O17: 80 | P17: 0 | S17: 1 Electrician & Truck | W17: HRS | X17: 80 | Y17: 0
A18: 2 Electricians & Truck | E18: HRS | F18: 160 | G18: 0 | J18: 2 Electricians & Truck | N18: HRS | O18: 160 | P18: 0 | S18: 2 Electricians & Truck | W18: HRS | X18: 160 | Y18: 0
G19: 0 | P19: 0 | Y19: 0
F21: Total | G21: =SUM(G10:G19) -> 3000 | O21: Total | P21: =SUM(P10:P19) -> 300 | X21: Total | Y21: =SUM(Y10:Y19) -> 600
A23: Outside Contractor - No Pilot Car
A25: 1-Flagger | C25: HRS | D25: 30 | E25: =B25*D25 -> 0
A26: 2-Flaggers | C26: HRS | D26: 60 | E26: =B26*D26 -> 0
A27: Signs | C27: DAYS | D27: 105 | E27: =B27*D27 -> 0
A28: Other | C28: LS | E28: =B28*D28 -> 0 | F28: (RCE TRAFFIC CONTROL CUTSHEET)
C30: Sub-total | E30: =SUM(E25:E28) -> 0
A33: Sanitary Facility Rental (Portable Toilet)
B35: Days | C35: 75 | D35: =A35*C35 -> 0

Sheet Eng Labor
D1: ='Estimate Form'!$K$6 -> Southwood Water System | G1: Eng. File # | H1: ='Estimate Form'!$K$9 -> 3939
D2: =CONCATENATE('Estimate Form'!$K$8, " County") -> Pierce County
D3: ='Estimate Form'!$K$7 -> 82nd Ave Apartments Distribution Extension
D4: Engineer's Opinion of Projected Construction Materials Costs
D5: =TODAY() -> 2022-05-25
F8: Employee
D9: Task | E9: Hours | F9: Classification | G9: Rate | H9: Total
D11: Facility Design
D12: Project Setup | E12: 1 | F12: Engineer | G12: 85 | H12: =E12*G12 -> 85
D13: Route Topo | F13: Engineer | G13: 85 | H13: =E13*G13 -> 0
D14: Develop Base Drawings from Topo Info | F14: Engineer | G14: 85 | H14: =E14*G14 -> 0
D15: DOH Project Report and Approval | F15: Engineer | G15: 85 | H15: =E15*G15 -> 0
D16: Design & Draft Watermain Construction Documents | F16: Engineer | G16: 85 | H16: 0
D18: Sub-Total | E18: =SUM(E12:E17) -> 1 | H18: =SUM(H12:H17) -> 85
D20: Revisions per Peer Review Comments
D21: P.E. Peer Review | E21: 2 | F21: Principle Eng | G21: 115 | H21: =E21*G21 -> 230
D22: Revisions to Construction Documents per Peer Review Comments | F22: Engineer | G22: 85 | H22: 0
D23: Coping & Re-Submittal of Project Report & Construction Documents | F23: Clerical | G23: 60 | H23: 0
D25: Sub-Total | E25: =SUM(E21:E24) -> 2 | H25: =SUM(H21:H24) -> 230
D27: Construction
D28: Pre-Construction Conference with Engineering & Contractor | E28: 2 | F28: Engineer | G28: 85 | H28: =E28*G28 -> 170
D29: Construction Inspection & Pressure Test | E29: 8 | F29: Engineer | G29: 85 | H29: =E29*G29 -> 680
D31: Sub-Total | E31: =SUM(E28:E30) -> 10 | H31: =SUM(H28:H30) -> 850
D33: Record Documents
D34: As-Built Drawings & Testing Validations along with Project Certification Document Preparation | E34: 2 | F34: Engineer | G34: 85 | H34: =E34*G34 -> 170
D35: P.E. Project Certification | F35: Principle Eng | G35: =G21 -> 115 | H35: 0
D36: Updating Base Maps & Site Piping | F36: Engineer | G36: =G22 -> 85 | H36: 0
D37: Project Close-Out | E37: 8 | F37: Clerical | G37: 60 | H37: 480
D39: Sub Total | E39: =SUM(E34:E38) -> 10 | H39: =SUM(H34:H38) -> 650
D42: Projected Total Hours | E42: =E18+E25+E31+E39 -> 23 | H42: =H18+H25+H31+H39 -> 1815

Sheet Inventory Cost 2021
A2: Descr | B2: Last Price Paid
A3: 1"x3/4" PVC ADAPTOR, PJxFIP-NO | B3: 29.36
A4: 1" PVC ADAPTOR, PJxFIP-NO LEAD | B4: 30.74
A5: 1-1/4" PVC ADAPTOR, PJxFIP-NO | B5: 38.81
A6: 1-1/2" PVC ADAPTOR, PJxFIP-NO | B6: 79.12
A7: 2" PVC ADAPTOR, PJxFIP-NO LEAD | B7: 106.36
A8: 1"x3/4" PVC ADAPTOR, PJxMIP-NO | B8: 28.97
A9: 1" PVC ADAPTOR, PJxMIP-NO LEAD | B9: 30.1
A10: 1-1/4" PVC ADAPTOR, PJxMIP-NO | B10: 49.56
A11: 1-1/2" PVC ADAPTOR, PJxMIP-NO | B11: 63.72
A12: 2" PVC ADAPTOR, PJxMIP-NO LEAD | B12: 92.58
A13: 1/2" PVC ADAPTOR FIP | B13: 0.39
A14: 3/4" PVC ADAPTOR FIP | B14: 0.34
A15: 1" PVC ADAPTOR FIP | B15: 0.78
A16: 1-1/4" PVC ADAPTOR FIP | B16: 0.76
A17: 1-1/2" PVC ADAPTOR FIP | B17: 0.56
A18: 2" PVC ADAPTOR FIP | B18: 9.67
A19: 2-1/2" PVC ADAPTOR FIP | B19: 1.49
A20: 3" PVC ADAPTOR FIP | B20: 2.88
A21: 4" PVC ADAPTOR FIP | B21: 5.24
A22: 6" PVC ADAPTOR FIP | B22: 0
A23: 1/2" PVC ADAPTOR MIP | B23: 0.22
A24: 3/4" PVC ADAPTOR MIP | B24: 1.19
A25: 1" PVC ADAPTOR MIP | B25: 0.42
A26: 1-1/4" PVC ADAPTOR MIP | B26: 0.52
A27: 1-1/2" PVC ADAPTOR MIP | B27: 0.646
A28: 2" PVC ADAPTOR MIP | B28: 0.9
A29: 2-1/2" PVC ADAPTOR MIP | B29: 2.68
A30: 3" PVC ADAPTOR MIP | B30: 5.76
A31: 4" PVC ADAPTOR MIP | B31: 5
A32: 3/4" PVC BUSHING SL x SL | B32: 0.6
A33: 1" PVC BUSHING SL x SL | B33: 0.46
A34: 1-1/4" PVC BUSHING SL x SL | B34: 1.67
A35: 1-1/2" PVC BUSHING SL x SL | B35: 3.09
A36: 2" PVC BUSHING SL x SL | B36: 1.25
A37: 2-1/2" PVC BUSHING SL x SL | B37: 1.5763
A38: 3" PVC BUSHING SL x SL | B38: 2.64
A39: 4" PVC BUSHING SL x SL | B39: 5.1
A40: 6" PVC BUSHING SL x SL | B40: 9.56
A41: 1/2" PVC BUSHING SL x TH | B41: 0.51
A42: 3/4" PVC BUSHING SL x TH | B42: 1.09
A43: 1" PVC BUSHING SL x TH | B43: 0.76
A44: 1-1/4" PVC BUSHING SL x TH | B44: 0.97
A45: 1-1/2" PVC BUSHING SL x TH | B45: 4.73
A46: 2" PVC BUSHING SL x TH | B46: 1.75
A47: 2-1/2" PVC BUSHING SL x TH | B47: 1.39
A48: 3" PVC BUSHING SL x TH | B48: 1.5
A49: 4" PVC BUSHING SL x TH | B49: 5.6
A50: 6" PVC BUSHING SL x TH | B50: 0
A51: 1/2" PVC CAP SL | B51: 0.17
A52: 3/4" PVC CAP SL | B52: 0.24
A53: 1" PVC CAP TH | B53: 0.54
A54: 1-1/4" PVC CAP SL | B54: 0.49
A55: 1-1/2" PVC CAP SL | B55: 1.19
A56: 2" PVC CAP SL | B56: 6.61
A57: 2-1/2" PVC CAP SL | B57: 2.025
A58: 3" PVC CAP SL | B58: 1.75
A59: 4" PVC CAP SL | B59: 3.97
A60: 6" PVC CAP SL | B60: 11.2
A61: 8" PVC CAP SL | B61: 0
A62: 1/2" PVC COUPLING, SL x SL | B62: 0.32
A63: 3/4" PVC COUPLING, SL x SL | B63: 0.22
A64: 1" PVC COUPLING, SL x SL | B64: 0.56
A65: 1-1/4" PVC COUPLING, SL x SL | B65: 0.99
A66: 1-1/2" PVC COUPLING, SL x SL | B66: 0.51
A67: 2" PVC COUPLING, SL x SL | B67: 0.73
A68: 2-1/2" PVC COUPLING, SL x SL | B68: 1.69
A69: 3" PVC COUPLING, SL x SL | B69: 2.01
A70: 4" PVC COUPLING, SL x SL | B70: 2.7
A71: 6" PVC COUPLING, SL x SL | B71: 12.18
A72: 8" PVC COUPLING, SL x SL | B72: 25.5
A73: 1/2" PVC FLOW CPLG, COMPRESSIO | B73: 3.07
A74: 3/4" PVC FLOW CPLG, COMPRESSIO | B74: 4.24
A75: 1" PVC FLOW CPLG, COMPRESSION | B75: 2.8
A76: 1-1/4" PVC FLOW CPLG, COMPRESS | B76: 6.2
A77: 1-1/2" PVC FLOW CPLG, COMPRESS | B77: 6.99
A78: 2" PVC FLOW CPLG, COMPRESSION | B78: 7.05
A79: 2-1/2" PVC FLOW CPLG, COMPRESS | B79: 15.79
A80: 3" PVC FLOW CPLG, COMPRESSION | B80: 20.59
A81: 4" PVC FLOW CPLG, COMPRESSION | B81: 0
A82: 3/4" PVC PACKJOINT COUPLING-NO | B82: 26.68
A83: 1" PVC PACKJOINT COUPLING-NO L | B83: 45.28
A84: 1-1/4" PVC PACKJOINT COUPLING- | B84: 64.99
A85: 1-1/2" PVC PACKJOINT COUPLING- | B85: 84.81
A86: 2" PVC PACKJOINT COUPLING-NO L | B86: 132.62
A87: 1/2" PVC CROSS, SL x SL | B87: 0
A88: 3/4" PVC CROSS, SL x SL | B88: 1.15
A89: 1" PVC CROSS, SL x SL | B89: 1.45
A90: 1-1/4" PVC CROSS, SL x SL | B90: 1.91
A91: 1-1/2" PVC CROSS, SL x SL | B91: 2.15
A92: 2" PVC CROSS, SL x SL | B92: 0
A93: 2-1/2" PVC CROSS, SL x SL | B93: 0
A94: 3" PVC CROSS, SL x SL | B94: 0
A95: 4" PVC CROSS, SL x SL | B95: 0
A96: 1/2" PVC ELBOW 45, SL x SL | B96: 0.38
A97: 3/4" PVC ELBOW 45, SL x SL | B97: 0.5
A98: 1" PVC ELBOW 45, SL x SL | B98: 0.69
A99: 1-1/4" PVC ELBOW 45, SL x SL | B99: 0.883
A100: 1-1/2" PVC ELBOW 45, SL x SL | B100: 1.28
A101: 2" PVC ELBOW 45, SL x SL | B101: 1.96
A102: 2-1/2" PVC ELBOW 45, SL x SL | B102: 3.85
A103: 3" PVC ELBOW 45, SL x SL | B103: 6.42
A104: 4" PVC ELBOW 45, SL x SL | B104: 8.28
A105: 6" PVC ELBOW 45, SL x SL | B105: 27.04
A106: 1/2" PVC ELBOW 90, SL x SL | B106: 0.3
A107: 3/4" PVC ELBOW 90, SL x SL | B107: 0.26
A108: 1" PVC ELBOW 90, SL x SL | B108: 1.29
A109: 1-1/4" PVC ELBOW 90, SL x SL | B109: 0.84
A110: 1-1/2" PVC ELBOW 90, SL x SL | B110: 0.9
A111: 2" PVC ELBOW 90, SL x SL | B111: 1.64
A112: 2-1/2" PVC ELBOW 90, SL x SL | B112: 2.65
A113: 3" PVC ELBOW 90, SL x SL | B113: 3.56
A114: 4" PVC ELBOW 90, SL x SL | B114: 6.36
A115: 6" PVC ELBOW 90, SL x SL | B115: 20.23
A116: 1"x3/4" PVC SL x SL RED ELBOW | B116: 0
A117: 1"x3/4" PVC SL x TH RED ELBOW | B117: 1.27
A118: 2" PVC VAN STONE FLG SCH 80 | B118: 9.98
A119: 4" PVC VAN STONE FLG SCH 80 | B119: 17.66
A120: 4" PVC PIPE, C900-165, DR25 | B120: 2.67
A121: 6" PVC PIPE, C900-165, DR25 | B121: 2.99
A122: 8" PVC PIPE, C900-165, DR25 | B122: 4.95
A123: 10" PVC PIPE, C900-165, DR25 | B123: 7.6
A124: 12" PVC PIPE, C900-165, DR25 | B124: 10.06
A125: 4" PVC PIPE, C900-235, DR18 | B125: 2.33
A126: 6" PVC PIPE, C900-235, DR18 | B126: 4.38
A127: 8" PVC PIPE, C900-235, DR18 | B127: 9.44
A128: 10" PVC PIPE, C900-235, DR18 | B128: 9.25
A129: 12" PVC PIPE, C900-235, DR18 | B129: 16.35
A130: 4" PVC PIPE, C900-305, DR14 | B130: 0
A131: 6" PVC PIPE, C900-305, DR14 | B131: 0
A132: 8" PVC PIPE, C900-305, DR14 | B132: 5.75
A133: 10" PVC PIPE, C900-305, DR14 | B133: 0
A134: 3/4" PVC PIPE, CL 200 | B134: 0
A135: 1" PVC PIPE, CL 200 | B135: 0
A136: 1-1/4" PVC PIPE, CL 200 | B136: 0
A137: 1-1/2" PVC PIPE, CL 200 | B137: 0
A138: 2" PVC PIPE, CL 200 | B138: 0.65
A139: 2-1/2" PVC PIPE, CL 200 | B139: 1
A140: 3" PVC PIPE, CL 200 | B140: 2.01
A141: 4" PVC PIPE, CL 200 | B141: 2.05
A142: 6" PVC PIPE, CL 200 | B142: 3.44
A143: 8" PVC PIPE, CL 200 | B143: 0
A144: 10" PVC PIPE, CL 200 | B144: 0
A145: 12" PVC PIPE, CL 200 | B145: 14.8
A146: 3/4" PVC PIPE, SCHEDULE 40 | B146: 0.232
A147: 1" PVC PIPE, SCHEDULE 40 | B147: 0.34
A148: 1-1/4" PVC PIPE, SCHEDULE 40 | B148: 0.5
A149: 1-1/2" PVC PIPE, SCHEDULE 40 | B149: 0.79
A150: 2" PVC PIPE, SCHEDULE 40 | B150: 0.79
A151: 2-1/2" PVC PIPE, SCHEDULE 40 | B151: 1.04
A152: 3" PVC PIPE, SCHEDULE 40 | B152: 1.35
A153: 4" PVC PIPE, SCHEDULE 40 | B153: 2.09
A154: 1" PVC PLUG | B154: 0
A155: 1-1/4" PVC PLUG | B155: 1.026
A156: 1-1/2" PVC PLUG | B156: 1.162
A157: 4" PVC PLUG | B157: 4.96
A158: 1/2" PVC TEE, SL x SL | B158: 1.45
A159: 3/4" PVC TEE, SL x SL | B159: 0.54
A160: 1" PVC TEE, SL x SL | B160: 0.64
A161: 1-1/4" PVC TEE, SL x SL | B161: 1.27
A162: 1-1/2" PVC TEE, SL x SL | B162: 1.6
A163: 2" PVC TEE, SL x SL | B163: 2.04
A164: 2-1/2" PVC TEE, SL x SL | B164: 3.68
A165: 3" PVC TEE, SL x SL | B165: 7.58
A166: 4" PVC TEE, SL x SL | B166: 9.44
A167: 6" PVC TEE, SL x SL | B167: 32.37
A168: 1" PVC REDUCING TEE SLxSL | B168: 0.88
A169: 1-1/4" PVC REDUCING TEE SLxSL | B169: 0
A170: 1-1/2" PVC REDUCING TEE SLxSL | B170: 0
A171: 2" PVC REDUCING TEE SLxSL | B171: 0
A172: 2-1/2" PVC REDUCING TEE SLxSL | B172: 0
A173: 3" PVC REDUCING TEE SLxSL | B173: 0
A174: 4" PVC REDUCING TEE SLxSL | B174: 12.06
A175: 3/4" PVC REDUCING TEE SLxTH | B175: 0
A176: 1" PVC REDUCING TEE SLxTH | B176: 0.8
A177: 1-1/4" PVC REDUCING TEE SLxTH | B177: 0
A178: 1-1/2" PVC REDUCING TEE SLxTH | B178: 2.264
A179: 2" PVC REDUCING TEE SLxTH | B179: 0
A180: 2-1/2" PVC REDUCING TEE SLxTH | B180: 5.35
A181: 3" PVC REDUCING TEE SLxTH | B181: 0
A182: 1/2" PVC TEE SLxTH | B182: 0
A183: 3/4" PVC TEE SLxTH | B183: 0
A184: 1" PVC TEE SLxTH | B184: 0.976
A185: 1-1/4" PVC TEE SLxTH | B185: 0
A186: 1-1/2" PVC TEE SLxTH | B186: 2.128
A187: 2" PVC TEE SLxTH | B187: 0
A188: 2-1/2" PVC TEE SLxTH | B188: 0
A189: 3" PVC TEE SLxTH | B189: 0
A190: 1" PVC UNION | B190: 3.12
A191: 2" PVC UNION | B191: 10.25
A192: 1" PVC SCH 80 FIP ADAPTOR | B192: 2.96
A193: 2" PVC SCH 80 FIP ADAPTOR | B193: 10.76
A194: 2-1/2" PVC SCH 80 FIP ADAPTOR | B194: 16.15
A195: 2" PVC SCH 80 BUSHING SL x TH | B195: 4.34
A196: 1" PVC SCH 80 CPLG, SLxSL | B196: 2.88
A197: 1-1/2" PVC SCH 80 CPLG, SLxSL | B197: 0
A198: 2" PVC SCH 80 CPLG, SLxSL | B198: 3.56
A199: 3" PVC SCH 80 CPLG, SLxSL | B199: 15.17
A200: 2" PVC SCH 80 ELBOW 90, SLxSL | B200: 2.99
A201: 2" PVC SCH 80 PIPE | B201: 1.31
... 1850 more rows
